[Event "44th Chess Olympiad Women 2022"]
[Site "Chennai"]
[Date "2022.08.01"]
[Round "4.59"]
[White "Sisior, Angelil"]
[Black "Mutisya, Jully"]
[Result "0-1"]
[WhiteElo "1488"]
[BlackElo "1428"]
[Annotator "NA RC"]
[PlyCount "72"]
[EventDate "2022.??.??"]
[TimeControl "60"]

1. e4 {[%emt 0:00:03]} d6 {[%emt 0:00:09]} 2. Nc3 {[%emt 0:01:13]} Nf6 {
[%emt 0:00:23]} 3. d4 {[%emt 0:02:34]} g6 {[%emt 0:00:31]} 4. f4 {[%emt 0:00:
00]} Bg7 {[%emt 0:00:15]} 5. Nf3 {[%emt 0:01:16]} O-O {[%emt 0:00:39]} 6. Be3 {
[%emt 0:00:17]} c6 {[%emt 0:01:15]} 7. Qd2 {[%emt 0:01:23]} Ng4 {[%emt 0:03:33]
} 8. Bg1 {[%emt 0:02:16]} b5 {[%emt 0:08:40]} 9. O-O-O {[%emt 0:11:48]} Qa5 {
[%emt 0:01:27]} 10. h3 {[%emt 0:05:08]} Nf6 {[%emt 0:16:50]} 11. Bd3 b4 {
[%emt 0:00:00]} 12. Nb1 {[%emt 0:11:58]} Qxa2 {[%emt 0:00:00]} 13. Qxb4 {
[%emt 0:03:26]} Na6 {[%emt 0:00:00]} 14. Qa3 {[%emt 0:07:14]} Qxa3 {[%emt 0:00:
00]} 15. Nxa3 {[%emt 0:00:43]} Nb4 {[%emt 0:00:52]} 16. e5 {[%emt 0:05:15]}
Nfd5 {[%emt 0:01:42]} 17. Bc4 {[%emt 0:06:35]} Nxf4 {[%emt 0:03:38]} 18. Ng5 {
[%emt 0:10:11]} d5 {[%emt 0:05:33]} 19. g3 {[%emt 0:02:41]} Nh5 {[%emt 0:00:59]
} 20. Bh2 {[%emt 0:05:38]} dxc4 {[%emt 0:01:16]} 21. Kb1 {[%emt 0:05:03]} Bh6 {
[%emt 0:01:44]} 22. g4 {[%emt 0:03:42]} Ng7 {[%emt 0:00:46]} 23. Ne4 {[%emt 0:
00:00]} Be6 {[%emt 0:00:50]} 24. c3 {[%emt 0:01:54]} Nd3 {[%emt 0:00:28]} 25.
Rhf1 {[%emt 0:01:08]} Bd5 {[%emt 0:01:06]} 26. Nc5 {[%emt 0:01:23]} Nxc5 {
[%emt 0:00:53]} 27. dxc5 {[%emt 0:00:14]} Ne6 {[%emt 0:00:28]} 28. h4 {[%emt 0:
00:00]} Nxc5 {[%emt 0:00:46]} 29. g5 {[%emt 0:01:29]} Bg7 {[%emt 0:00:29]} 30.
Rd4 {[%emt 0:01:15]} Nb3 {[%emt 0:02:26]} 31. Rdd1 {[%emt 0:00:05]} Rfd8 {
[%emt 0:00:39]} 32. Ka2 {[%emt 0:00:50]} Be6 {[%emt 0:00:47]} 33. Rde1 {
[%emt 0:01:38]} Rd2 {[%emt 0:03:10]} 34. Bf4 {[%emt 0:00:29]} Rg2 {[%emt 0:00:
00]} 35. Rd1 {[%emt 0:01:47]} Rb8 {[%emt 0:00:53]} 36. Rfe1 {[%emt 0:00:41]}
Nc5 {[%emt 0:01:08]} 0-1

[Event "44th Chess Olympiad Women 2022"]
[Site "Chennai"]
[Date "2022.08.01"]
[Round "4.60"]
[White "Elfelo, Khadija"]
[Black "Alazmi, Aeshah"]
[Result "1-0"]
[WhiteElo "1875"]
[BlackElo "1256"]
[Annotator "NA RC"]
[PlyCount "113"]
[EventDate "2022.??.??"]
[TimeControl "60"]

1. e4 {[%emt 0:00:03]} e5 {[%emt 0:00:05]} 2. Nf3 {[%emt 0:00:05]} Nc6 {
[%emt 0:00:11]} 3. Bc4 {[%emt 0:00:13]} Bc5 {[%emt 0:00:09]} 4. O-O {[%emt 0:
00:00]} Nf6 {[%emt 0:00:17]} 5. d3 {[%emt 0:00:38]} d6 {[%emt 0:00:22]} 6. h3 {
[%emt 0:00:58]} O-O {[%emt 0:00:20]} 7. Nc3 {[%emt 0:03:27]} Be6 {[%emt 0:00:
00]} 8. Bb3 {[%emt 0:03:36]} d5 {[%emt 0:00:22]} 9. Bg5 {[%emt 0:04:02]} dxe4 {
[%emt 0:05:02]} 10. Nxe4 {[%emt 0:01:42]} Be7 {[%emt 0:00:07]} 11. Bxf6 {
[%emt 0:07:50]} Bxf6 {[%emt 0:00:12]} 12. Nxf6+ {[%emt 0:00:58]} Qxf6 {[%emt 0:
00:00]} 13. Re1 {[%emt 0:02:12]} Rad8 {[%emt 0:00:14]} 14. Qe2 {[%emt 0:04:50]}
Rfe8 {[%emt 0:06:23]} 15. Ba4 {[%emt 0:17:25]} Bd7 {[%emt 0:03:42]} 16. Bb3 {
[%emt 0:12:53]} Nd4 {[%emt 0:03:24]} 17. Nxd4 {[%emt 0:01:43]} exd4 {[%emt 0:
00:00]} 18. Qh5 {[%emt 0:00:52]} g6 {[%emt 0:01:11]} 19. Qa5 {[%emt 0:03:05]}
c6 {[%emt 0:05:49]} 20. Qc7 {[%emt 0:03:10]} Bc8 {[%emt 0:04:03]} 21. Kf1 {
[%emt 0:09:09]} Kf8 {[%emt 0:05:28]} 22. Rxe8+ {[%emt 0:01:04]} Rxe8 {[%emt 0:
00:00]} 23. Re1 {[%emt 0:00:40]} Rxe1+ {[%emt 0:01:05]} 24. Kxe1 {[%emt 0:00:
00]} Qe7+ {[%emt 0:00:11]} 25. Qxe7+ {[%emt 0:00:25]} Kxe7 {[%emt 0:00:04]} 26.
Ke2 {[%emt 0:00:10]} f5 {[%emt 0:00:34]} 27. Kf3 {[%emt 0:00:30]} Kf6 {[%emt 0:
00:00]} 28. h4 {[%emt 0:00:41]} h5 {[%emt 0:00:13]} 29. Kf4 {[%emt 0:00:17]} b5
{[%emt 0:01:22]} 30. a4 {[%emt 0:02:00]} b4 {[%emt 0:00:19]} 31. a5 {[%emt 0:
00:00]} c5 {[%emt 0:00:39]} 32. Bd5 {[%emt 0:00:48]} Ba6 {[%emt 0:00:56]} 33.
Bb3 {[%emt 0:00:50]} Bb5 {[%emt 0:00:29]} 34. g3 {[%emt 0:00:58]} Ba6 {[%emt 0:
00:00]} 35. Bc4 {[%emt 0:01:16]} Bxc4 {[%emt 0:00:18]} 36. dxc4 {[%emt 0:00:02]
} b3 {[%emt 0:00:20]} 37. cxb3 {[%emt 0:01:04]} d3 {[%emt 0:00:55]} 38. Ke3 {
[%emt 0:00:03]} g5 {[%emt 0:01:04]} 39. Kxd3 {[%emt 0:01:30]} Ke5 {[%emt 0:00:
00]} 40. hxg5 {[%emt 0:00:30]} f4 {[%emt 0:00:15]} 41. g6 {[%emt 0:30:39]} fxg3
{[%emt 0:31:25]} 42. fxg3 {[%emt 0:00:04]} Kf6 {[%emt 0:00:10]} 43. Ke4 {
[%emt 0:05:55]} Kxg6 {[%emt 0:00:23]} 44. b4 {[%emt 0:03:29]} cxb4 {[%emt 0:00:
00]} 45. c5 {[%emt 0:00:09]} Kf6 {[%emt 0:00:13]} 46. Kd5 {[%emt 0:00:13]} Ke7
{[%emt 0:01:39]} 47. Kc4 {[%emt 0:01:56]} a6 {[%emt 0:01:09]} 48. Kxb4 {
[%emt 0:00:10]} Kd7 {[%emt 0:00:05]} 49. Kc4 {[%emt 0:00:04]} Kc6 {[%emt 0:00:
00]} 50. b3 {[%emt 0:00:21]} Kd7 {[%emt 0:01:30]} 51. Kd5 {[%emt 0:00:06]} Kc7
{[%emt 0:00:03]} 52. b4 {[%emt 0:00:12]} Kd7 {[%emt 0:00:08]} 53. c6+ {[%emt 0:
00:00]} Kc7 {[%emt 0:00:20]} 54. Kc5 {[%emt 0:00:01]} Kb8 {[%emt 0:00:24]} 55.
Kb6 {[%emt 0:00:16]} Ka8 {[%emt 0:00:33]} 56. c7 {[%emt 0:00:25]} h4 {[%emt 0:
00:00]} 57. c8=Q# {[%emt 0:00:06]} 1-0

[Event "44th Chess Olympiad Women 2022"]
[Site "Chennai"]
[Date "2022.08.01"]
[Round "4.60"]
[White "Hadeel Mohammad Kalandar"]
[Black "El Flow, Khuloud"]
[Result "0-1"]
[WhiteElo "1083"]
[BlackElo "1836"]
[Annotator "NA RC"]
[PlyCount "98"]
[EventDate "2022.??.??"]
[TimeControl "60"]

1. e4 {[%emt 0:00:03]} c5 {[%emt 0:00:51]} 2. Nc3 {[%emt 0:00:29]} d6 {[%emt 0:
00:00]} 3. Nf3 {[%emt 0:00:16]} Nc6 {[%emt 0:00:56]} 4. d3 {[%emt 0:01:22]} Nf6
{[%emt 0:01:01]} 5. g3 {[%emt 0:00:34]} Bg4 {[%emt 0:00:28]} 6. Bg2 {[%emt 0:
00:00]} e6 {[%emt 0:02:30]} 7. h3 {[%emt 0:03:17]} Bh5 {[%emt 0:01:46]} 8. Be3
{[%emt 0:06:12]} Be7 {[%emt 0:01:24]} 9. O-O {[%emt 0:01:51]} O-O {[%emt 0:00:
00]} 10. Qd2 {[%emt 0:05:10]} Qc7 {[%emt 0:03:24]} 11. d4 {[%emt 0:06:30]} cxd4
{[%emt 0:11:20]} 12. Nxd4 {[%emt 0:01:08]} Nxd4 {[%emt 0:03:05]} 13. Bxd4 {
[%emt 0:02:05]} a6 {[%emt 0:00:51]} 14. a4 {[%emt 0:01:59]} Bg6 {[%emt 0:04:56]
} 15. Rfe1 {[%emt 0:06:45]} e5 {[%emt 0:01:53]} 16. Be3 {[%emt 0:09:15]} Qc6 {
[%emt 0:01:18]} 17. Nd5 {[%emt 0:07:08]} Nxd5 {[%emt 0:01:17]} 18. exd5 {
[%emt 0:01:13]} Qxc2 {[%emt 0:00:36]} 19. Qxc2 {[%emt 0:01:53]} Bxc2 {[%emt 0:
00:00]} 20. Rec1 {[%emt 0:01:36]} Rfc8 {[%emt 0:00:25]} 21. h4 {[%emt 0:09:45]}
Rc4 {[%emt 0:08:49]} 22. a5 {[%emt 0:00:00]} Rac8 {[%emt 0:03:05]} 23. Bh3 {
[%emt 0:05:21]} f5 {[%emt 0:00:55]} 24. f4 {[%emt 0:09:01]} Bf6 {[%emt 0:05:08]
} 25. Bf1 {[%emt 0:05:00]} Rb4 {[%emt 0:03:18]} 26. Ra2 {[%emt 0:01:48]} e4 {
[%emt 0:08:57]} 27. b3 {[%emt 0:01:55]} Rxb3 {[%emt 0:04:35]} 28. Raxc2 {
[%emt 0:00:17]} Rxc2 {[%emt 0:00:48]} 29. Rxc2 {[%emt 0:00:09]} Rxe3 {[%emt 0:
00:00]} 30. Rc8+ {[%emt 0:02:09]} Kf7 {[%emt 0:00:24]} 31. Rc7+ {[%emt 0:00:02]
} Be7 {[%emt 0:02:15]} 32. Kh2 {[%emt 0:01:22]} Ra3 {[%emt 0:00:48]} 33. Bh3 {
[%emt 0:00:46]} g6 {[%emt 0:01:06]} 34. g4 {[%emt 0:00:16]} fxg4 {[%emt 0:00:
00]} 35. Bxg4 {[%emt 0:00:42]} Ra2+ {[%emt 0:02:29]} 36. Kg3 {[%emt 0:00:10]}
e3 {[%emt 0:00:26]} 37. Be6+ {[%emt 0:00:22]} Ke8 {[%emt 0:05:23]} 38. Rc8+ {
[%emt 0:02:41]} Bd8 {[%emt 0:01:05]} 39. Rc1 {[%emt 0:00:50]} Bxa5 {[%emt 0:00:
00]} 40. Kg4 {[%emt 0:00:04]} e2 {[%emt 0:00:54]} 41. Kg5 {[%emt 0:36:09]} e1=Q
{[%emt 0:30:38]} 42. Rxe1 {[%emt 0:00:31]} Bxe1 {[%emt 0:00:37]} 43. h5 {
[%emt 0:00:00]} gxh5 {[%emt 0:00:00]} 44. f5 {[%emt 0:00:00]} Rg2+ {[%emt 0:00:
00]} 45. Kh6 {[%emt 0:00:00]} Bd2+ {[%emt 0:00:00]} 46. Kxh7 {[%emt 0:00:00]}
Kf8 {[%emt 0:00:00]} 47. f6 {[%emt 0:00:00]} h4 {[%emt 0:00:00]} 48. f7 {
[%emt 0:00:00]} h3 {[%emt 0:00:00]} 49. Bxh3 {[%emt 0:00:00]} Rh2 {[%emt 0:00:
00]} 0-1

[Event "44th Chess Olympiad Women 2022"]
[Site "Chennai"]
[Date "2022.08.01"]
[Round "4.60"]
[White "Nema, Rabab Ahmed"]
[Black "Elfelo, Eklas"]
[Result "1-0"]
[WhiteElo "1172"]
[BlackElo "1562"]
[Annotator "NA RC"]
[PlyCount "55"]
[EventDate "2022.??.??"]
[TimeControl "60"]

1. d4 {[%emt 0:00:05]} Nf6 {[%emt 0:00:12]} 2. c4 {[%emt 0:00:17]} g6 {[%emt 0:
00:00]} 3. Nc3 {[%emt 0:00:20]} Bg7 {[%emt 0:00:21]} 4. e4 {[%emt 0:00:08]} d6
{[%emt 0:00:13]} 5. Nf3 {[%emt 0:00:23]} O-O {[%emt 0:01:20]} 6. Be2 {[%emt 0:
00:00]} b6 {[%emt 0:03:29]} 7. O-O {[%emt 0:02:41]} Bb7 {[%emt 0:03:15]} 8. d5
{[%emt 0:04:53]} Re8 {[%emt 0:07:43]} 9. h3 {[%emt 0:04:34]} Nbd7 {[%emt 0:00:
00]} 10. Be3 {[%emt 0:05:30]} c5 {[%emt 0:06:01]} 11. Qd2 {[%emt 0:03:25]} Qc7
{[%emt 0:01:11]} 12. Bh6 {[%emt 0:04:01]} a6 {[%emt 0:02:24]} 13. Bxg7 {
[%emt 0:01:27]} Kxg7 {[%emt 0:00:37]} 14. Nh4 {[%emt 0:04:42]} e6 {[%emt 0:00:
00]} 15. f4 {[%emt 0:02:46]} Qd8 {[%emt 0:11:58]} 16. Qe1 {[%emt 0:06:09]} exd5
{[%emt 0:13:34]} 17. exd5 {[%emt 0:12:12]} Ne4 {[%emt 0:04:06]} 18. Nxe4 {
[%emt 0:14:29]} Rxe4 {[%emt 0:00:49]} 19. Nf3 {[%emt 0:01:58]} Qf6 {[%emt 0:00:
00]} 20. g3 {[%emt 0:05:00]} Qxb2 {[%emt 0:01:45]} 21. Nd2 {[%emt 0:05:15]} Re3
{[%emt 0:05:27]} 22. Rf3 {[%emt 0:03:16]} Rae8 {[%emt 0:01:03]} 23. Rxe3 {
[%emt 0:00:15]} Rxe3 {[%emt 0:00:05]} 24. Kf2 {[%emt 0:01:41]} Re7 {[%emt 0:00:
00]} 25. Qc1 {[%emt 0:03:17]} Qd4+ {[%emt 0:00:38]} 26. Kf1 {[%emt 0:02:02]}
Qe3 {[%emt 0:01:00]} 27. Qb2+ {[%emt 0:02:20]} Kf8 {[%emt 0:02:17]} 28. Qh8# {
[%emt 0:01:15]} 1-0

[Event "44th Chess Olympiad Women 2022"]
[Site "Chennai"]
[Date "2022.08.01"]
[Round "4.61"]
[White "Dhimal, Shanti"]
[Black "Nan M K Khine Hlyan"]
[Result "0-1"]
[WhiteElo "1499"]
[BlackElo "1979"]
[Annotator "NA RC"]
[PlyCount "64"]
[EventDate "2022.??.??"]
[TimeControl "60"]

1. e4 {[%emt 0:00:03]} e5 {[%emt 0:00:30]} 2. Nf3 {[%emt 0:00:10]} Nc6 {
[%emt 0:00:31]} 3. Bc4 {[%emt 0:00:33]} Bc5 {[%emt 0:00:16]} 4. Nc3 {[%emt 0:
00:00]} Nf6 {[%emt 0:00:22]} 5. d3 {[%emt 0:00:49]} h6 {[%emt 0:01:00]} 6. a3 {
[%emt 0:00:51]} a5 {[%emt 0:02:43]} 7. h3 {[%emt 0:01:02]} O-O {[%emt 0:01:21]}
8. O-O {[%emt 0:00:09]} d6 {[%emt 0:00:18]} 9. Be3 {[%emt 0:00:28]} Nd4 {
[%emt 0:01:19]} 10. Na4 {[%emt 0:02:30]} Ba7 {[%emt 0:02:25]} 11. Nc3 {[%emt 0:
00:00]} c6 {[%emt 0:00:55]} 12. b4 {[%emt 0:02:15]} d5 {[%emt 0:01:05]} 13.
exd5 {[%emt 0:01:35]} cxd5 {[%emt 0:00:14]} 14. Ba2 {[%emt 0:00:35]} Nxf3+ {
[%emt 0:01:23]} 15. Qxf3 {[%emt 0:02:49]} d4 {[%emt 0:00:32]} 16. Bxh6 {
[%emt 0:00:34]} gxh6 {[%emt 0:01:35]} 17. Nd5 {[%emt 0:01:57]} Nxd5 {[%emt 0:
00:00]} 18. Bxd5 {[%emt 0:00:17]} Rb8 {[%emt 0:10:18]} 19. Qg3+ {[%emt 0:00:37]
} Qg5 {[%emt 0:00:56]} 20. Rae1 {[%emt 0:04:47]} Qxg3 {[%emt 0:04:54]} 21. fxg3
{[%emt 0:00:12]} Be6 {[%emt 0:01:33]} 22. Rxe5 {[%emt 0:01:34]} Bxd5 {[%emt 0:
00:00]} 23. Rxd5 {[%emt 0:00:18]} axb4 {[%emt 0:00:26]} 24. axb4 {[%emt 0:00:
00]} Rbd8 {[%emt 0:04:57]} 25. Rh5 {[%emt 0:02:03]} Rd6 {[%emt 0:03:22]} 26.
Rf4 {[%emt 0:01:44]} Rg6 {[%emt 0:03:50]} 27. g4 {[%emt 0:02:01]} Bb8 {[%emt 0:
00:00]} 28. Re4 {[%emt 0:00:34]} Kg7 {[%emt 0:02:23]} 29. Kf1 {[%emt 0:00:17]}
Re6 {[%emt 0:04:36]} 30. Rb5 {[%emt 0:06:01]} Rfe8 {[%emt 0:04:40]} 31. Rxe6 {
[%emt 0:00:38]} Rxe6 {[%emt 0:00:17]} 32. Rxb7 {[%emt 0:00:20]} Bg3 {[%emt 0:
00:00]} 0-1

[Event "44th Chess Olympiad Women 2022"]
[Site "Chennai"]
[Date "2022.08.01"]
[Round "4.61"]
[White "San Diego, Marie Antoinette"]
[Black "Lohani, Sujana"]
[Result "0-1"]
[WhiteElo "2101"]
[BlackElo "1697"]
[Annotator "NA RC"]
[PlyCount "96"]
[EventDate "2022.??.??"]
[TimeControl "60"]

1. e4 {[%emt 0:00:08]} g6 {[%emt 0:01:09]} 2. d4 {[%emt 0:00:18]} Bg7 {[%emt 0:
00:00]} 3. Nf3 {[%emt 0:00:19]} d6 {[%emt 0:00:18]} 4. h3 {[%emt 0:00:22]} c6 {
[%emt 0:06:40]} 5. Nc3 {[%emt 0:00:32]} b5 {[%emt 0:02:47]} 6. b4 {[%emt 0:00:
00]} a5 {[%emt 0:02:41]} 7. Ba3 {[%emt 0:02:18]} Na6 {[%emt 0:05:11]} 8. Rb1 {
[%emt 0:00:39]} axb4 {[%emt 0:01:45]} 9. Bxb4 {[%emt 0:00:14]} Nxb4 {[%emt 0:
00:00]} 10. Rxb4 {[%emt 0:00:13]} Qa5 {[%emt 0:00:43]} 11. Rb3 {[%emt 0:00:39]}
Be6 {[%emt 0:01:12]} 12. d5 {[%emt 0:00:27]} Bxc3+ {[%emt 0:00:37]} 13. Nd2 {
[%emt 0:00:18]} cxd5 {[%emt 0:03:28]} 14. Bxb5+ {[%emt 0:00:59]} Kf8 {[%emt 0:
00:00]} 15. Bc6 {[%emt 0:00:25]} Rd8 {[%emt 0:07:24]} 16. exd5 {[%emt 0:00:20]}
Bd7 {[%emt 0:01:22]} 17. Bxd7 {[%emt 0:00:31]} Rxd7 {[%emt 0:00:12]} 18. O-O {
[%emt 0:00:36]} Bxd2 {[%emt 0:00:55]} 19. Rb8+ {[%emt 0:00:20]} Kg7 {[%emt 0:
00:00]} 20. Qa1+ {[%emt 0:00:47]} Bc3 {[%emt 0:00:19]} 21. Ra8 {[%emt 0:01:47]}
Qxa8 {[%emt 0:01:38]} 22. Qxc3+ {[%emt 0:00:11]} Nf6 {[%emt 0:00:03]} 23. Re1 {
[%emt 0:00:14]} Qxd5 {[%emt 0:00:49]} 24. g4 {[%emt 0:00:44]} h6 {[%emt 0:00:
00]} 25. f4 {[%emt 0:01:06]} Qc5+ {[%emt 0:00:10]} 26. Qxc5 {[%emt 0:00:25]}
dxc5 {[%emt 0:00:03]} 27. Kf2 {[%emt 0:00:22]} Ra8 {[%emt 0:01:08]} 28. Re5 {
[%emt 0:00:01]} Rd2+ {[%emt 0:00:42]} 29. Re2 {[%emt 0:00:26]} Rxe2+ {[%emt 0:
00:00]} 30. Kxe2 {[%emt 0:00:07]} Rxa2 {[%emt 0:00:04]} 31. Kd3 {[%emt 0:00:15]
} Ra3+ {[%emt 0:00:08]} 32. c3 {[%emt 0:00:15]} Nd5 {[%emt 0:00:05]} 33. Kc4 {
[%emt 0:00:14]} Nxf4 {[%emt 0:00:38]} 34. Kxc5 {[%emt 0:00:19]} Rxc3+ {[%emt 0:
00:00]} 35. Kd4 {[%emt 0:00:08]} Rxh3 {[%emt 0:00:13]} 36. Ke5 {[%emt 0:00:12]}
Nd3+ {[%emt 0:02:03]} 37. Ke4 {[%emt 0:00:14]} h5 {[%emt 0:00:22]} 38. gxh5 {
[%emt 0:00:13]} gxh5 {[%emt 0:00:08]} 39. Kf5 {[%emt 0:00:12]} Rg3 {[%emt 0:00:
00]} 40. Ke4 {[%emt 0:00:11]} h4 {[%emt 0:00:28]} 41. Kf5 {[%emt 0:30:11]} h3 {
[%emt 0:30:24]} 42. Ke4 {[%emt 0:00:07]} h2 {[%emt 0:00:25]} 43. Kf5 {[%emt 0:
00:00]} e6+ {[%emt 0:00:41]} 44. Ke4 {[%emt 0:00:23]} h1=Q+ {[%emt 0:00:11]}
45. Kd4 {[%emt 0:00:09]} Qd5+ {[%emt 0:00:07]} 46. Kc3 {[%emt 0:00:20]} Ne5+ {
[%emt 0:00:10]} 47. Kb4 {[%emt 0:00:12]} Rb3+ {[%emt 0:00:14]} 48. Ka4 {
[%emt 0:00:10]} Qb5# {[%emt 0:00:51]} 0-1

[Event "44th Chess Olympiad Women 2022"]
[Site "Chennai"]
[Date "2022.08.01"]
[Round "4.62"]
[White "Dlamini, Nosipho"]
[Black "De la Riva Real, Jana"]
[Result "1/2-1/2"]
[WhiteElo "1081"]
[BlackElo "1167"]
[Annotator "NA RC"]
[PlyCount "73"]
[EventDate "2022.??.??"]
[TimeControl "60"]

1. e4 {[%emt 0:00:02]} e6 {[%emt 0:00:07]} 2. d4 {[%emt 0:00:14]} d5 {[%emt 0:
00:00]} 3. exd5 {[%emt 0:00:24]} exd5 {[%emt 0:00:15]} 4. Nf3 {[%emt 0:00:32]}
Nf6 {[%emt 0:00:40]} 5. Bg5 {[%emt 0:00:13]} Bg4 {[%emt 0:00:30]} 6. Nbd2 {
[%emt 0:01:07]} Nc6 {[%emt 0:01:09]} 7. Bb5 {[%emt 0:01:12]} Bd6 {[%emt 0:00:
00]} 8. Qe2+ {[%emt 0:01:24]} Qe7 {[%emt 0:01:47]} 9. Qxe7+ {[%emt 0:04:26]}
Bxe7 {[%emt 0:00:19]} 10. Ne5 {[%emt 0:03:57]} Bd7 {[%emt 0:06:18]} 11. Bxf6 {
[%emt 0:05:33]} Bxf6 {[%emt 0:00:59]} 12. Nxd7 {[%emt 0:02:21]} Kxd7 {[%emt 0:
00:00]} 13. c3 {[%emt 0:03:18]} Rhe8+ {[%emt 0:11:17]} 14. Kd1 {[%emt 0:03:38]}
Re7 {[%emt 0:09:31]} 15. Kc2 {[%emt 0:02:45]} Rae8 {[%emt 0:01:54]} 16. Rad1 {
[%emt 0:05:13]} a6 {[%emt 0:04:32]} 17. Bd3 {[%emt 0:01:37]} g6 {[%emt 0:04:13]
} 18. Nf3 {[%emt 0:06:56]} Nd8 {[%emt 0:08:45]} 19. Rhe1 {[%emt 0:03:51]} Ne6 {
[%emt 0:04:13]} 20. g3 {[%emt 0:03:18]} Ng5 {[%emt 0:07:45]} 21. Rxe7+ {
[%emt 0:01:32]} Rxe7 {[%emt 0:00:15]} 22. Nxg5 {[%emt 0:00:55]} Bxg5 {[%emt 0:
00:00]} 23. f4 {[%emt 0:01:07]} Bh6 {[%emt 0:00:52]} 24. Rd2 {[%emt 0:07:58]}
f5 {[%emt 0:05:05]} 25. Re2 {[%emt 0:01:38]} Bf8 {[%emt 0:01:40]} 26. Rxe7+ {
[%emt 0:01:00]} Bxe7 {[%emt 0:00:13]} 27. Be2 {[%emt 0:01:42]} c5 {[%emt 0:00:
00]} 28. Bf3 {[%emt 0:01:34]} cxd4 {[%emt 0:09:53]} 29. Bxd5 {[%emt 0:01:33]}
dxc3 {[%emt 0:00:15]} 30. Bxb7 {[%emt 0:03:03]} cxb2 {[%emt 0:00:12]} 31. Bxa6
{[%emt 0:03:28]} Ba3 {[%emt 0:01:37]} 32. Kb1 {[%emt 0:02:59]} Kd6 {[%emt 0:00:
00]} 33. Bc4 {[%emt 0:03:21]} h6 {[%emt 0:00:31]} 34. Bf7 {[%emt 0:01:55]} g5 {
[%emt 0:00:30]} 35. Bg6 {[%emt 0:05:51]} Ke6 {[%emt 0:01:33]} 36. h4 {[%emt 0:
00:00]} gxh4 {[%emt 0:01:44]} 37. gxh4 {[%emt 0:00:45]} 1/2-1/2

[Event "44th Chess Olympiad Women 2022"]
[Site "Chennai"]
[Date "2022.08.01"]
[Round "4.62"]
[White "Galera Serra, Maria"]
[Black "Nomcebo, Sibisi"]
[Result "0-1"]
[WhiteElo "1464"]
[BlackElo "1225"]
[Annotator "NA RC"]
[PlyCount "166"]
[EventDate "2022.??.??"]
[TimeControl "60"]

1. e4 {[%emt 0:00:03]} g6 {[%emt 0:00:27]} 2. d4 {[%emt 0:00:06]} Bg7 {[%emt 0:
00:00]} 3. Nc3 {[%emt 0:00:10]} c6 {[%emt 0:00:16]} 4. Bc4 {[%emt 0:04:55]} d6
{[%emt 0:02:57]} 5. Nge2 {[%emt 0:02:29]} e5 {[%emt 0:01:27]} 6. Be3 {[%emt 0:
00:00]} Nd7 {[%emt 0:00:37]} 7. Qd2 {[%emt 0:01:17]} Ngf6 {[%emt 0:00:23]} 8.
h3 {[%emt 0:14:11]} b5 {[%emt 0:00:47]} 9. Bb3 {[%emt 0:12:13]} a5 {[%emt 0:00:
00]} 10. a3 {[%emt 0:01:52]} O-O {[%emt 0:01:12]} 11. O-O {[%emt 0:03:14]} Ba6
{[%emt 0:06:48]} 12. dxe5 {[%emt 0:03:00]} Nxe5 {[%emt 0:02:42]} 13. f4 {
[%emt 0:00:06]} Nc4 {[%emt 0:01:51]} 14. Bxc4 {[%emt 0:00:26]} bxc4 {[%emt 0:
00:00]} 15. f5 {[%emt 0:01:39]} d5 {[%emt 0:00:43]} 16. Bg5 {[%emt 0:00:45]}
dxe4 {[%emt 0:03:15]} 17. Qxd8 {[%emt 0:04:14]} Raxd8 {[%emt 0:00:24]} 18. fxg6
{[%emt 0:00:12]} Rd6 {[%emt 0:02:04]} 19. gxh7+ {[%emt 0:00:27]} Kxh7 {[%emt 0:
00:00]} 20. Ng3 {[%emt 0:18:28]} Nd5 {[%emt 0:01:33]} 21. Ngxe4 {[%emt 0:00:30]
} Re6 {[%emt 0:01:54]} 22. Bd2 {[%emt 0:05:32]} Nxc3 {[%emt 0:00:40]} 23. Ng5+
{[%emt 0:00:07]} Kg8 {[%emt 0:01:29]} 24. Nxe6 {[%emt 0:03:02]} Ne2+ {[%emt 0:
00:00]} 25. Kh2 {[%emt 0:01:16]} fxe6 {[%emt 0:00:13]} 26. Rxf8+ {[%emt 0:00:
00]} Kxf8 {[%emt 0:00:29]} 27. Bxa5 {[%emt 0:00:29]} Bxb2 {[%emt 0:00:33]} 28.
Bb4+ {[%emt 0:02:21]} Kf7 {[%emt 0:01:19]} 29. Rf1+ {[%emt 0:01:45]} Kg6 {
[%emt 0:01:01]} 30. Rf8 {[%emt 0:01:06]} Be5+ {[%emt 0:00:37]} 31. Kh1 {
[%emt 0:00:14]} c3 {[%emt 0:02:38]} 32. g4 {[%emt 0:02:17]} Bc4 {[%emt 0:01:54]
} 33. Kg2 {[%emt 0:01:44]} Nf4+ {[%emt 0:01:27]} 34. Kf3 {[%emt 0:01:24]} Bd5+
{[%emt 0:01:15]} 35. Ke3 {[%emt 0:00:55]} Nxh3 {[%emt 0:00:34]} 36. Rg8+ {
[%emt 0:02:33]} Kf7 {[%emt 0:00:54]} 37. Rf8+ {[%emt 0:00:13]} Kg7 {[%emt 0:00:
00]} 38. Rf1 {[%emt 0:00:56]} Ng5 {[%emt 0:01:50]} 39. Kd3 {[%emt 0:01:58]} Ne4
{[%emt 0:01:12]} 40. Re1 {[%emt 0:01:37]} Nf2+ {[%emt 0:00:16]} 41. Ke2 {
[%emt 0:30:33]} Nh3 {[%emt 0:30:58]} 42. Kd3 {[%emt 0:00:42]} Nf4+ {[%emt 0:00:
00]} 43. Ke3 {[%emt 0:00:15]} Ng2+ {[%emt 0:00:17]} 44. Kf2 {[%emt 0:00:03]}
Nxe1 {[%emt 0:00:41]} 45. Kxe1 {[%emt 0:00:03]} Be4 {[%emt 0:00:16]} 46. Kd1 {
[%emt 0:00:27]} Bf3+ {[%emt 0:00:09]} 47. Ke1 {[%emt 0:00:05]} Bxg4 {[%emt 0:
00:00]} 48. a4 {[%emt 0:00:03]} Bf3 {[%emt 0:00:37]} 49. Bc5 {[%emt 0:01:26]}
Bc7 {[%emt 0:00:24]} 50. Bd4+ {[%emt 0:00:26]} Kf7 {[%emt 0:00:16]} 51. Bxc3 {
[%emt 0:00:00]} Bb6 {[%emt 0:00:18]} 52. Kd2 {[%emt 0:00:00]} Ke8 {[%emt 0:00:
00]} 53. Kd3 {[%emt 0:00:10]} Kd7 {[%emt 0:00:34]} 54. a5 {[%emt 0:02:12]} Ba7
{[%emt 0:00:23]} 55. Be5 {[%emt 0:01:52]} Kc8 {[%emt 0:01:06]} 56. a6 {[%emt 0:
00:00]} Bg2 {[%emt 0:01:25]} 57. c4 {[%emt 0:00:28]} Bf1+ {[%emt 0:00:38]} 58.
Kc3 {[%emt 0:00:03]} c5 {[%emt 0:00:23]} 59. Kb3 {[%emt 0:01:17]} Kd7 {[%emt 0:
00:00]} 60. Bc3 {[%emt 0:00:00]} Kc6 {[%emt 0:00:00]} 61. Ba5 {[%emt 0:00:00]}
Bb6 {[%emt 0:00:00]} 62. Bc3 {[%emt 0:00:00]} Ba7 {[%emt 0:00:00]} 63. Ba5 {
[%emt 0:00:00]} e5 {[%emt 0:00:00]} 64. Bd8 {[%emt 0:00:00]} e4 {[%emt 0:00:00]
} 65. Ba5 {[%emt 0:00:00]} Bh3 {[%emt 0:00:00]} 66. Kc2 {[%emt 0:00:00]} Bc8 {
[%emt 0:00:00]} 67. Kd2 {[%emt 0:00:00]} Bxa6 {[%emt 0:00:00]} 68. Ke3 {
[%emt 0:00:00]} Bxc4 {[%emt 0:00:00]} 69. Kxe4 {[%emt 0:00:00]} Bd5+ {[%emt 0:
00:00]} 70. Kd3 {[%emt 0:00:00]} c4+ {[%emt 0:00:00]} 71. Kc2 {[%emt 0:00:00]}
Be4+ {[%emt 0:00:00]} 72. Kc1 {[%emt 0:00:00]} Bd3 {[%emt 0:00:00]} 73. Kd1 {
[%emt 0:00:00]} Kb5 {[%emt 0:00:00]} 74. Bd2 {[%emt 0:00:00]} Ka4 {[%emt 0:00:
00]} 75. Ke1 {[%emt 0:00:00]} Kb3 {[%emt 0:00:00]} 76. Ba5 {[%emt 0:00:00]} Bc5
{[%emt 0:00:00]} 77. Bc7 {[%emt 0:00:00]} c3 {[%emt 0:00:00]} 78. Bf4 {[%emt 0:
00:00]} c2 {[%emt 0:01:15]} 79. Bg5 {[%emt 0:00:29]} Ka2 {[%emt 0:00:00]} 80.
Bf4 {[%emt 0:00:00]} Kb1 {[%emt 0:00:00]} 81. Bg5 {[%emt 0:00:00]} Ba3 {
[%emt 0:00:00]} 82. Bf4 {[%emt 0:00:00]} Bc1 {[%emt 0:00:00]} 83. Be3 {[%emt 0:
00:00]} Bh7 {[%emt 0:00:00]} 0-1